bitfinex-derivatives/quotes_ETHF0:USTF0_20230105
["timestamp","ask_amount","ask_price","bid_price","bid_amount"]
[1672902622414,2.98315918,1250.8,1250.7,6.31391169]
[1672902622726,2.98315918,1250.8,1250.7,3.81391169]
[1672902623464,2.98315918,1250.8,1250.7,6.31391169]
[1672902624402,2.98315918,1250.8,1250.7,3.81391169]
[1672902624614,2.98315918,1250.8,1250.7,2.39699283]
[1672902625671,2.98315918,1250.8,1250.7,4.19545125]
[1672902625988,2.98315918,1250.8,1250.7,2.39699283]
[1672902626406,2.98315918,1250.8,1250.7,4.19558077]
[1672902626616,2.98315918,1250.8,1250.7,2.39699283]
[1672902632919,2.98315918,1250.8,1250.7,4.19553484]
[1672902633128,2.98315918,1250.8,1250.7,1.79854201]
[1672902633660,2.98315918,1250.8,1250.7,4.19553484]
[1672902634602,2.98315918,1250.8,1250.7,2.39699283]
[1672902635650,2.98315918,1250.8,1250.7,4.89699283]
[1672902635856,2.98315918,1250.8,1250.7,6.31391046]
[1672902642171,2.98315918,1250.8,1250.7,3.81391046]
[1672902642385,2.98315918,1250.8,1250.7,6.31391046]
[1672902644903,2.98315918,1250.8,1250.7,3.81391046]
[1672902645111,2.98315918,1250.8,1250.7,6.31391046]
[1672902645322,2.98315918,1250.8,1250.7,3.81391046]
[1672902646479,2.98315918,1250.8,1250.7,2.39699283]
[1672902650686,6.19095918,1250.8,1250.7,4.19548393]
[1672902650999,6.19095918,1250.8,1250.7,1.7984911]
[1672902651202,6.19095918,1250.8,1250.7,4.19548393]
[1672902651415,6.19095918,1250.8,1250.7,1.7984911]
[1672902651623,6.19095918,1250.8,1250.7,4.19548393]
[1672902652050,2.98315918,1250.8,1250.7,4.19548393]
[1672902652361,5.48638461,1250.8,1250.7,1.7984911]
[1672902652572,5.48638461,1250.8,1250.7,4.19548393]
[1672902654151,5.48638461,1250.8,1250.7,5.99394013]
[1672902654883,5.48638461,1250.8,1250.7,4.19548393]
[1672902655306,5.48638461,1250.8,1250.7,5.99396185]
[1672902659713,5.48638461,1250.8,1250.7,3.59696902]
[1672902662347,2.5,1250.8,1250.7,3.59696902]
[1672902663286,2.5,1250.8,1250.7,2.99113481]
[1672902663499,6.08560149,1250.8,1250.7,2.11534589]
[1672902663711,6.08560149,1250.8,1250.7,0.91633694]
[1672902663923,6.67642094,1250.8,1250.7,0.91633694]
[1672902665289,6.08040607,1250.8,1250.7,0.91633694]
[1672902667709,2.5,1250.8,1250.7,0.91633694]
[1672902673171,3.2078,1250.8,1250.7,0.91633694]
[1672902673386,5.70385832,1250.8,1250.7,3.41633694]
[1672902673698,9.28426439,1250.8,1250.7,0.91633694]
[1672902673907,5.70385832,1250.8,1250.7,0.91633694]
[1672902676865,2.5,1250.8,1250.7,0.91633694]
[1672902677073,5.7078,1250.8,1250.7,0.91633694]
[1672902678016,2.5,1250.8,1250.7,0.91633694]
[1672902678441,5.7078,1250.8,1250.7,0.91633694]
[1672902679913,6.18717027,1250.8,1250.7,0.91633694]
[1672902680130,6.18717027,1250.8,1250.7,2.11534589]
[1672902681589,3.2078,1250.8,1250.7,0.91633694]
[1672902681805,6.1875799,1250.8,1250.7,2.11534589]
[1672902682649,8.57134619,1250.8,1250.7,3.91382381]
[1672902682857,6.1875799,1250.8,1250.7,2.11534589]
[1672902683067,6.1875799,1250.8,1250.7,3.91382381]
[1672902683382,5.36287244,1250.8,1250.7,3.91382381]
[1672902683800,2.9797799,1250.8,1250.7,2.11534589]
[1672902684011,2.9797799,1250.8,1250.7,3.91382381]
[1672902684432,2.9797799,1250.8,1250.7,2.11534589]
[1672902685066,2.9797799,1250.8,1250.7,3.91382381]
[1672902685698,2.9797799,1250.8,1250.7,2.11534589]
[1672902686330,6.1875799,1250.8,1250.7,2.11534589]
[1672902688749,2.9797799,1250.8,1250.7,2.11534589]
[1672902690950,2.9797799,1250.8,1250.7,3.91382381]
[1672902691376,2.9797799,1250.8,1250.7,2.11534589]
[1672902692538,5.4797799,1250.8,1250.7,2.11534589]
[1672902698310,8.6875799,1250.8,1250.7,2.11534589]
[1672902698947,6.1875799,1250.8,1250.7,2.11534589]
[1672902699156,6.1875799,1250.8,1250.7,3.91382381]
[1672902699364,6.1875799,1250.8,1250.7,2.11534589]
[1672902699681,6.1875799,1250.8,1250.7,3.91382381]
[1672902700936,6.1875799,1250.8,1250.7,2.11534589]
[1672902701464,6.1875799,1250.8,1250.7,3.91382381]
[1672902703042,6.1875799,1250.8,1250.7,2.11534589]
[1672902703255,6.1875799,1250.8,1250.7,3.91382381]
[1672902707244,6.1875799,1250.8,1250.7,2.71481486]
[1672902707876,2.9797799,1250.8,1250.7,2.71481486]
[1672902708084,2.9797799,1250.8,1250.7,3.912969]
[1672902708292,2.9797799,1250.8,1250.7,2.71481486]
[1672902710402,2.9797799,1250.8,1250.7,3.91298245]
[1672902713661,2.9797799,1250.8,1250.7,2.71481486]
[1672902713863,2.9797799,1250.8,1250.7,3.91329277]
[1672902714388,9.28820607,1250.9,1250.7,3.91329277]
[1672902717441,6.08040607,1250.9,1250.7,3.91329277]
[1672902717756,3.2078,1250.8,1250.7,3.91329277]
[1672902718710,3.2078,1250.8,1250.7,2.11481485]
[1672902718909,6.78820607,1250.8,1250.7,2.11481485]
[1672902720485,3.2078,1250.8,1250.7,2.11481485]
[1672902721224,6.78820607,1250.8,1250.7,2.11481485]
[1672902721641,3.2078,1250.8,1250.7,2.11481485]
[1672902722485,6.78820607,1250.8,1250.7,2.11481485]
[1672902723537,3.2078,1250.8,1250.7,3.91329277]
[1672902723848,3.2078,1250.8,1250.7,2.11481485]
[1672902724064,3.2078,1250.8,1250.7,3.91329277]
[1672902728898,3.2078,1250.8,1250.7,2.11481485]
[1672902729835,10.25682701,1250.9,1250.7,2.11481485]
[1672902730045,3.2078,1250.8,1250.7,2.11481485]
[1672902730467,10.25682701,1250.9,1250.7,2.11481485]
[1672902730687,3.2078,1250.8,1250.7,2.11481485]
[1672902733105,6.78820607,1250.8,1250.7,2.11481485]
[1672902733522,3.58040607,1250.8,1250.7,2.11481485]
[1672902733729,6.78820607,1250.8,1250.7,2.11481485]
[1672902735628,3.58040607,1250.8,1250.7,2.11481485]
[1672902735936,3.2078,1250.8,1250.7,2.11481485]
[1672902736565,10.25682701,1250.9,1250.7,2.11481485]
[1672902736776,3.2078,1250.8,1250.7,2.11481485]
[1672902737197,10.25682701,1250.9,1250.7,2.11481485]
[1672902737624,3.2078,1250.8,1250.7,2.11481485]
[1672902738778,3.2078,1250.8,1250.7,3.91329277]
[1672902739623,6.08040607,1250.9,1250.7,3.91329277]
[1672902739829,3.2078,1250.8,1250.7,2.11481485]
[1672902740147,3.2078,1250.8,1250.7,2.11154863]
[1672902741829,6.08040607,1250.9,1250.7,2.11154863]
[1672902742027,3.2078,1250.8,1250.7,2.11154863]
[1672902742553,3.2078,1250.8,1250.7,3.91002655]
[1672902742764,3.2078,1250.8,1250.7,2.11154863]
[1672902746453,6.08040607,1250.9,1250.7,2.11154863]
[1672902746664,3.2078,1250.8,1250.7,2.11154863]
[1672902747389,10.25682701,1250.9,1250.7,2.11154863]
[1672902747600,10.25682701,1250.9,1250.7,3.91002655]
[1672902747813,3.2078,1250.8,1250.7,3.91002655]
[1672902749710,6.78820607,1250.8,1250.7,2.11154863]
[1672902749914,3.2078,1250.8,1250.7,3.91002655]
[1672902750444,6.78820607,1250.8,1250.7,2.11154863]
[1672902750867,3.2078,1250.8,1250.7,3.91002655]
[1672902751177,6.78820607,1250.8,1250.7,2.11154863]
[1672902754755,3.58040607,1250.8,1250.7,2.11154863]
[1672902754964,6.78820607,1250.8,1250.7,2.11154863]
[1672902759378,6.78820607,1250.8,1250.7,3.91002655]
[1672902759904,3.58040607,1250.8,1250.7,3.91002655]
[1672902760215,6.78820607,1250.8,1250.7,0.91307072]
[1672902760425,7.38422094,1250.8,1250.7,0.91307072]
[1672902761471,10.9648254,1250.8,1250.7,0.91307072]
[1672902761793,7.38422094,1250.8,1250.7,0.91307072]
[1672902762737,5.7078,1250.8,1250.7,0.91307072]
[1672902763055,14.66090673,1250.8,1250.7,0.91307072]
[1672902763789,10.48611621,1250.8,1250.7,0.91307072]
[1672902764211,14.66073053,1250.8,1250.7,0.91307072]
[1672902764623,10.48611621,1250.8,1250.7,0.91307072]
[1672902765264,10.48611621,1250.8,1250.4,16.95495583]
[1672902765467,6.18820874,1250.5,1250.4,15.15647791]
[1672902765677,6.18820874,1250.5,1250.4,2.99695583]
[1672902766423,5.59221946,1250.5,1250.4,2.99695583]
[1672902766733,8.5726282,1250.5,1250.4,5.49695583]
[1672902766943,5.59221946,1250.5,1250.4,4.29847792]
[1672902767154,2.38441946,1250.5,1250.4,6.69547075]
[1672902767364,4.17265954,1250.5,1250.4,6.69547075]
[1672902769777,2.38441946,1250.5,1250.4,5.49604872]
[1672902770303,2.38441946,1250.5,1250.4,4.29847792]
[1672902773676,4.1723015,1250.5,1250.4,4.29847792]
[1672902773887,4.17230811,1250.5,1250.4,4.29847792]
[1672902776401,1.78788865,1250.5,1250.4,6.69547075]
[1672902778407,4.17230811,1250.5,1250.4,4.29847792]
[1672902778925,1.78788865,1250.5,1250.4,6.69547075]
[1672902779337,4.17230811,1250.5,1250.4,6.69547075]
[1672902780303,1.78788865,1250.5,1250.4,6.69547075]
[1672902780722,4.17230811,1250.5,1250.4,6.69547075]
[1672902782090,4.17230811,1250.5,1250.4,4.29847792]
[1672902782512,4.17230811,1250.5,1250.4,6.69547075]
[1672902785454,1.78788865,1250.5,1250.4,4.89699283]
[1672902785875,1.78788865,1250.5,1250.4,2.39699283]
[1672902786077,2.38441946,1250.5,1250.4,1.79635845]
[1672902786398,4.88441946,1250.5,1250.4,4.29635845]
[1672902786608,2.38441946,1250.5,1250.4,4.29635845]
[1672902787029,4.17310031,1250.5,1250.4,6.69335128]
[1672902787243,2.38441946,1250.5,1250.4,6.69335128]
[1672902788290,2.38441946,1250.5,1250.4,4.29635845]
[1672902789027,2.38441946,1250.5,1250.4,6.69335128]
[1672902789757,2.38441946,1250.5,1250.4,4.89699283]
[1672902789968,2.38441946,1250.5,1250.4,6.69375548]
[1672902791342,2.38441946,1250.5,1250.4,4.89699283]
[1672902793864,2.38441946,1250.5,1250.4,6.6941758]
[1672902796491,2.38441946,1250.5,1250.4,4.89699283]
[1672902796902,2.38441946,1250.5,1250.4,6.69451105]
[1672902797330,5.3648282,1250.5,1250.4,4.89699283]
[1672902797538,2.98040874,1250.5,1250.4,4.19487059]
[1672902797961,5.36720266,1250.5,1250.4,6.69487059]
[1672902798697,2.98040874,1250.5,1250.4,6.69487059]
[1672902799011,5.36796906,1250.5,1250.4,6.31421116]
[1672902800485,2.98040874,1250.5,1250.4,4.89699283]
[1672902800799,5.36799857,1250.5,1250.4,6.31424201]
[1672902801223,2.98040874,1250.5,1250.4,6.31424201]
[1672902802598,5.36816795,1250.5,1250.4,6.31424201]
[1672902803436,2.38775921,1250.5,1250.4,9.30540572]
[1672902804898,5.36824442,1250.5,1250.4,6.31424201]
[1672902805436,2.98040874,1250.5,1250.4,6.31424201]
[1672902806690,5.36879068,1250.5,1250.4,6.31424201]
[1672902806904,2.98040874,1250.5,1250.4,6.31424201]
[1672902807317,2.38835532,1250.5,1250.4,6.90841289]
[1672902808683,2.38835532,1250.5,1250.4,10.11621289]
[1672902809528,2.38835532,1250.5,1250.4,9.30662508]
[1672902809737,2.38835532,1250.5,1250.4,6.90841289]
[1672902810589,2.38302134,1250.5,1250.4,6.90841289]
[1672902815954,2.38302134,1250.5,1250.4,14.88841289]
[1672902820985,1.79152814,1250.5,1250.4,14.88841289]
[1672902822877,1.79152814,1250.5,1250.4,18.09621289]
[1672902823617,1.79152814,1250.5,1250.4,14.88841289]
[1672902823818,1.79152814,1250.5,1250.4,18.09621289]
[1672902824247,2.98577286,1250.5,1250.4,18.09621289]
[1672902835604,1.79152814,1250.5,1250.4,18.09621289]
[1672902835807,2.98531615,1250.5,1250.4,18.09621289]
[1672902836656,2.98531615,1250.5,1250.4,14.88841289]
[1672902836968,2.98531615,1250.5,1250.4,18.09621289]
[1672902837600,2.98531615,1250.5,1250.4,14.88841289]
[1672902838017,2.98531615,1250.5,1250.4,18.09621289]
[1672902838227,2.98531615,1250.5,1250.4,14.88841289]
[1672902838756,2.98531615,1250.5,1250.4,18.09621289]
[1672902839274,2.98531615,1250.5,1250.4,14.88841289]
[1672902839918,2.98531615,1250.5,1250.4,18.09621289]
[1672902840229,1.79152814,1250.5,1250.4,18.09621289]
[1672902853375,1.79152814,1250.5,1250.4,14.88841289]
[1672902853692,1.79152814,1250.5,1250.4,18.09621289]
[1672902854530,1.79152814,1250.5,1250.4,14.88841289]
[1672902854745,1.79152814,1250.5,1250.4,18.09621289]
[1672902856531,4.17996428,1250.5,1250.4,18.09621289]
[1672902856950,4.17996428,1250.5,1250.4,14.88841289]
[1672902857156,1.79152814,1250.5,1250.4,18.09621289]
[1672902857474,4.17996428,1250.5,1250.4,18.09621289]
[1672902857682,1.79152814,1250.5,1250.4,18.09621289]
[1672902858004,4.17996428,1250.5,1250.4,18.09621289]
[1672902859368,2.38843614,1250.5,1250.4,18.09621289]
[1672902867873,2.38843614,1250.5,1250.4,14.88841289]
[1672902874702,2.38843614,1250.5,1250.4,17.28628735]
[1672902875025,2.38843614,1250.5,1250.4,14.88841289]
[1672902877553,2.38843614,1250.5,1250.4,12.38841289]
[1672902877757,5.36884488,1250.5,1250.4,11.79513298]
[1672902878613,2.98040874,1250.5,1250.4,11.79513298]
[1672902879020,5.37346078,1250.5,1250.4,11.79513298]
[1672902879966,2.39305204,1250.5,1250.4,11.79513298]
[1672902880176,2.39305204,1250.5,1250.4,14.78629669]
[1672902881223,2.39305204,1250.5,1250.4,11.79513298]
[1672902881447,2.39305204,1250.5,1250.4,14.78629669]
[1672902884704,2.39305204,1250.5,1250.4,12.38841289]
[1672902890485,2.39305204,1250.5,1250.4,4.40841289]
[1672902891113,2.39305204,1250.5,1250.4,3.81508411]
[1672902891114,5.37346078,1250.5,1250.4,3.81508411]
[1672902891425,5.37346078,1250.5,1250.4,11.79508411]
[1672902892482,2.39305204,1250.5,1250.4,14.78624782]
[1672902892689,2.39305204,1250.5,1250.4,6.80624782]
[1672902892899,2.39305204,1250.5,1250.4,4.40841289]
[1672902895321,2.39305204,1250.5,1250.4,12.38841289]
[1672902896582,2.39305204,1250.5,1250.4,4.40841289]
[1672902899202,2.39305204,1250.5,1250.4,6.8068034]
[1672902899520,5.37346078,1250.5,1250.4,6.80676988]
[1672902900356,2.98040874,1250.5,1250.4,3.81560617]
[1672902900568,5.37421724,1250.5,1250.4,6.80676988]
[1672902902358,2.98040874,1250.5,1250.4,3.81560617]
[1672902902566,2.98040874,1250.5,1250.4,6.80676988]
[1672902902777,2.98040874,1250.5,1250.4,3.81560617]
[1672902902985,5.37416265,1250.5,1250.4,6.80676988]
[1672902903198,2.98040874,1250.5,1250.4,3.81560617]
[1672902904047,5.37423405,1250.5,1250.4,6.80676988]
[1672902904356,2.39382531,1250.5,1250.4,4.40841289]
[1672902904569,5.37423405,1250.5,1250.4,4.40841289]
[1672902904989,2.39382531,1250.5,1250.4,4.40841289]
[1672902907195,5.37423405,1250.5,1250.4,4.40841289]
[1672902908145,2.39382531,1250.5,1250.4,4.40841289]
[1672902909189,2.98040874,1250.5,1250.4,3.81573996]
[1672902911082,2.39341435,1250.5,1250.4,4.40841289]
[1672902913184,5.37382309,1250.5,1250.4,6.8067372]
[1672902914011,2.39341435,1250.5,1250.4,4.40841289]
[1672902914757,2.98040874,1250.5,1250.4,3.81562042]
[1672902924006,2.98040874,1250.5,1250.4,2.39837124]
[1672902930200,2.98040874,1250.5,1250.4,4.19682873]
[1672902931883,2.98040874,1250.5,1250.4,4.19672023]
[1672902932198,2.98040874,1250.5,1250.4,2.39837124]
[1672902934202,2.98040874,1250.5,1250.4,3.81561735]
[1672902934414,5.37400159,1250.5,1250.4,3.81561735]
[1672902934617,5.37400159,1250.5,1250.4,6.31561735]
[1672902935033,5.37400159,1250.5,1250.4,3.81561735]
[1672902937456,5.37400159,1250.5,1250.4,6.80678106]
[1672902938302,5.37400159,1250.5,1250.4,6.31561735]
[1672902938512,5.37400159,1250.5,1250.4,6.80678106]
[1672902938722,5.37400159,1250.5,1250.4,3.81561735]
[1672902938933,5.37400159,1250.5,1250.4,6.31561735]
[1672902939144,5.37400159,1250.5,1250.4,9.30678106]
[1672902939458,5.37400159,1250.5,1250.4,6.80678106]
[1672902939876,5.37400159,1250.5,1250.4,9.30678106]
[1672902940190,2.39359285,1250.5,1250.4,9.30678106]
[1672902941456,2.39359285,1250.5,1250.4,6.80678106]
[1672902941668,2.39359285,1250.5,1250.4,4.40840982]
[1672902942821,2.39359285,1250.5,1250.4,6.80636011]
[1672902943249,2.39359285,1250.5,1250.4,4.40840982]
[1672902945984,2.39359285,1250.5,1250.4,3.81520201]
[1672902946197,5.37324731,1250.5,1250.4,3.81520201]
[1672902946407,5.37323175,1250.5,1250.4,3.81520201]
[1672902947350,2.39282301,1250.5,1250.4,4.40840982]
[1672902948497,2.99134988,1250.5,1250.4,1.41724611]
[1672902948714,1.19658912,1250.5,1250.4,1.41724611]
[1672902948927,2.99134988,1250.5,1250.4,1.41724611]
[1672902950082,2.99134988,1250.5,1250.4,4.4130766]
[1672902950819,2.99134988,1250.5,1250.4,7.6208766]
[1672902952713,2.99134988,1250.5,1250.4,4.4130766]
[1672902952924,1.19658912,1250.5,1250.4,15.6008766]
[1672902953137,1.19658912,1250.5,1250.4,12.60504611]
[1672902953763,1.19658912,1250.5,1250.4,15.59978891]
[1672902954182,1.19658912,1250.5,1250.4,12.60504611]
[1672902955230,1.19658912,1250.5,1250.4,9.39724611]
[1672902955441,1.19658912,1250.5,1250.4,15.10504611]
[1672902956608,2.99134988,1250.6,1250.4,15.10504611]
[1672902956818,2.99134988,1250.6,1250.5,9.30527843]
[1672902957132,1.79476076,1250.6,1250.5,6.31192714]
[1672902957450,2.9902419,1250.6,1250.5,9.30527843]
[1672902958386,1.79476076,1250.6,1250.5,9.51972714]
[1672902958698,2.99001854,1250.6,1250.5,6.31192714]
[1672902958906,2.99001854,1250.6,1250.5,9.51972714]
[1672902959970,2.99001854,1250.6,1250.5,6.31192714]
[1672902960173,2.99001854,1250.6,1250.5,9.51972714]
[1672902960601,1.79476076,1250.6,1250.5,9.51972714]
[1672902960811,2.9898959,1250.6,1250.5,9.51972714]
[1672902962598,1.79476076,1250.6,1250.5,9.51972714]
[1672902963548,6.18820874,1250.7,1250.5,1.79580043]
[1672902963757,6.18820874,1250.7,1250.6,3.69722823]
[1672902964599,6.18820874,1250.7,1250.6,1.19722823]
[1672902965333,2.98040874,1250.7,1250.6,1.19722823]
[1672902965544,6.18820874,1250.7,1250.6,1.19722823]
[1672902966905,6.18820874,1250.7,1250.6,2.99302866]
[1672902967225,6.18820874,1250.7,1250.6,1.19722823]
[1672902967449,6.18820874,1250.7,1250.6,2.99302866]
[1672902971330,3.2078,1250.7,1250.6,1.19722823]
[1672902972390,6.07649049,1250.8,1250.6,1.19722823]
[1672902972596,3.2078,1250.7,1250.6,1.19722823]
[1672902973433,3.2078,1250.7,1250.5,2.99302866]
[1672902973645,5.48880824,1250.6,1250.5,2.99302866]
[1672902973858,5.48880824,1250.6,1250.5,2.9936156]
[1672902974805,5.48880824,1250.6,1250.5,1.79580043]
[1672902975543,5.48880824,1250.6,1250.5,2.99366622]
[1672902976600,5.48880824,1250.6,1250.5,1.79580043]
[1672902977123,5.48880824,1250.6,1250.5,2.9937212]
[1672902977756,5.48880824,1250.6,1250.5,1.79580043]
[1672902978480,2.98880824,1250.6,1250.5,1.79580043]
[1672902981323,2.98880824,1250.6,1250.5,2.99382666]
[1672902981530,2.98880824,1250.6,1250.5,2.99382323]
[1672902981851,2.98880824,1250.6,1250.5,2.99384848]
[1672902983211,2.98880824,1250.6,1250.5,1.79580043]
[1672902998555,2.98880824,1250.6,1250.5,4.19048146]
[1672902999718,2.98880824,1250.6,1250.5,1.79580043]
[1672902999926,5.48880824,1250.6,1250.5,1.79580043]
[1672903000137,2.5,1250.6,1250.5,2.99447201]
[1672903000865,8.69841061,1250.6,1250.5,2.99447201]
[1672903001825,5.7078,1250.6,1250.5,2.99447201]
[1672903003504,2.5,1250.6,1250.5,2.99447201]
[1672903003817,5.7078,1250.6,1250.5,2.99447201]
[1672903004662,3.2078,1250.6,1250.5,2.99447201]
[1672903004972,3.2078,1250.6,1250.5,1.79580043]
[1672903005292,6.19868878,1250.6,1250.5,1.79580043]
[1672903006657,2.99088878,1250.6,1250.5,1.79580043]
[1672903007708,5.49088878,1250.6,1250.5,1.79580043]
[1672903008970,2.99088878,1250.6,1250.5,1.79580043]
[1672903009177,5.49088878,1250.6,1250.5,1.79580043]
[1672903010332,8.69868878,1250.6,1250.5,1.79580043]
[1672903010859,5.7078,1250.6,1250.5,1.79580043]
[1672903012117,2.5,1250.6,1250.5,1.79580043]
[1672903012428,5.7078,1250.6,1250.5,1.79580043]
[1672903012957,3.2078,1250.6,1250.5,4.19048146]
[1672903013169,6.19982999,1250.6,1250.5,4.19048146]
[1672903013690,2.99202999,1250.6,1250.5,4.19048146]
[1672903014421,2.99202999,1250.6,1250.5,2.39468103]
[1672903017696,5.49202999,1250.6,1250.5,2.39468103]
[1672903018112,2.99202999,1250.6,1250.5,2.39468103]
[1672903019270,2.99202999,1250.6,1250.5,4.19335143]
[1672903019479,5.49202999,1250.6,1250.5,4.19335143]
[1672903020001,2.5,1250.6,1250.5,1.7986704]
[1672903020950,6.78429049,1250.7,1250.5,1.7986704]
[1672903021161,2.99230808,1250.6,1250.5,2.39468103]
[1672903021476,5.49230808,1250.6,1250.5,4.89468103]
[1672903021895,5.49230808,1250.6,1250.5,6.6933198]
[1672903022103,5.49230808,1250.6,1250.5,6.69332391]
[1672903024309,5.49230808,1250.6,1250.5,4.19332391]
[1672903025583,2.5,1250.6,1250.5,1.79864288]
[1672903029474,2.5,1250.6,1250.5,2.99776947]
[1672903030529,2.5,1250.6,1250.5,1.79864288]
[1672903033254,5.7078,1250.6,1250.5,1.79864288]
[1672903033890,2.5,1250.6,1250.5,1.79864288]
[1672903034102,5.7078,1250.6,1250.5,1.79864288]
[1672903034515,5.7078,1250.6,1250.5,2.99776958]
[1672903037143,2.5,1250.6,1250.5,2.99776958]
[1672903037347,5.7078,1250.6,1250.5,2.99776958]
[1672903040089,2.5,1250.6,1250.5,2.99776958]
[1672903040294,5.7078,1250.6,1250.5,2.99776958]
[1672903041038,3.2078,1250.6,1250.5,2.99776958]
[1672903043446,5.7078,1250.6,1250.5,2.99776958]
[1672903045758,2.5,1250.6,1250.5,2.99776958]
[1672903045964,5.7078,1250.6,1250.5,2.99776958]
[1672903050708,2.5,1250.6,1250.5,2.99776958]
[1672903050919,5.7078,1250.6,1250.5,2.99776958]
[1672903052601,2.5,1250.6,1250.5,2.99776958]
[1672903053026,5.7078,1250.6,1250.5,2.99776958]
[1672903053762,2.5,1250.6,1250.5,2.99776958]
[1672903053965,5.7078,1250.6,1250.5,2.99776958]
[1672903054497,5.7078,1250.6,1250.5,1.1991267]
[1672903054705,5.7078,1250.6,1250.5,2.99776958]
[1672903055021,5.7078,1250.6,1250.5,1.1991267]
[1672903055223,5.7078,1250.6,1250.5,2.99776958]
[1672903055639,5.7078,1250.6,1250.5,1.1991267]
[1672903055970,5.7078,1250.6,1250.5,2.99776958]
[1672903056697,2.5,1250.6,1250.5,2.99776958]
[1672903056912,5.7078,1250.6,1250.5,2.99776958]
[1672903058387,2.5,1250.6,1250.5,2.99776958]
[1672903058594,5.7078,1250.6,1250.5,1.1991267]
[1672903058803,5.7078,1250.6,1250.5,2.99776958]
[1672903059125,9.28429049,1250.6,1250.5,2.99776958]
[1672903060168,9.28429049,1250.6,1250.5,1.1991267]
[1672903060594,9.28429049,1250.6,1250.4,2.99776958]
[1672903063127,9.28429049,1250.6,1250.5,1.1991267]
[1672903063337,9.28429049,1250.6,1250.4,2.99776958]
[1672903063549,9.28429049,1250.6,1250.5,1.1991267]
[1672903064397,6.07649049,1250.6,1250.5,1.1991267]
[1672903064917,9.28429049,1250.6,1250.5,1.1991267]
[1672903068804,6.07649049,1250.6,1250.5,1.1991267]
[1672903069116,9.28429049,1250.6,1250.5,1.1991267]
[1672903070478,9.28429049,1250.6,1250.4,2.99776958]
[1672903070795,9.28429049,1250.6,1250.5,1.1991267]
[1672903075212,6.78429049,1250.6,1250.5,1.1991267]
[1672903076690,3.57649049,1250.6,1250.5,1.1991267]
[1672903076895,6.07649049,1250.6,1250.5,1.1991267]
[1672903077109,9.28429049,1250.6,1250.5,1.1991267]
[1672903077323,6.07649049,1250.6,1250.5,1.1991267]
[1672903077524,9.28429049,1250.6,1250.5,1.1991267]
[1672903082037,2.5,1250.5,1250.4,2.99776958]
[1672903082250,6.07649049,1250.5,1250.4,1.1991267]
[1672903082462,2.5,1250.5,1250.4,1.1991267]
[1672903084894,9.28429049,1250.6,1250.4,1.1991267]
[1672903088364,2.5,1250.5,1250.4,1.1991267]
[1672903093417,6.07649049,1250.5,1250.4,1.1991267]
[1672903093838,6.07649049,1250.5,1250.3,1.1991267]
[1672903094049,3.2078,1250.4,1250.3,1.19898645]
[1672903094363,3.2078,1250.4,1250.3,3.69898645]
[1672903094575,3.2078,1250.4,1250.3,1.19898645]
[1672903099295,2.5,1250.3,1250.2,3.69898645]
[1672903099508,5.48982397,1250.3,1250.2,3.69898645]
[1672903099721,5.48982397,1250.3,1250.2,1.19898645]
[1672903101719,8.69762397,1250.3,1250.2,1.19898645]
[1672903102660,5.7078,1250.3,1250.1,1.19898645]
[1672903102978,5.48767853,1250.2,1250.1,1.19898645]
[1672903104439,5.48767853,1250.2,1250.0,3.69898645]
[1672903104659,4.99941736,1250.1,1250.0,3.69898645]
[1672903104870,4.99941736,1250.1,1250.0,4.89468103]
[1672903105079,4.99941736,1250.1,1250.0,2.5]
[1672903105394,4.99941736,1250.1,1250.0,4.89468103]
[1672903105804,4.99941736,1250.1,1250.0,2.5]
[1672903106874,6.1934445,1250.1,1250.0,2.5]
[1672903107820,6.1934445,1250.1,1249.9,7.88803232]
[1672903108031,1.19402714,1250.0,1249.9,7.88803232]
[1672903108236,2.5,1250.0,1249.9,9.3056813]
[1672903108765,2.9856445,1250.1,1249.9,9.3056813]
[1672903108766,2.9856445,1250.1,1249.9,6.91100027]
[1672903108972,2.9856445,1250.1,1250.0,4.89348727]
[1672903110025,1.19402714,1250.1,1250.0,4.89348727]
[1672903110333,1.79079255,1250.1,1249.9,4.89348727]
[1672903110542,4.29079255,1250.1,1250.0,3.69680523]
[1672903112651,5.48427361,1250.1,1250.0,1.19680523]
[1672903115279,4.29079255,1250.1,1250.0,1.19680523]
[1672903118968,6.67958712,1250.1,1250.0,1.19680523]
[1672903122321,4.88879457,1250.1,1249.9,1.19680523]
[1672903122536,2.98279762,1250.0,1249.9,1.19680523]
[1672903122745,2.98279762,1250.0,1249.9,3.69680523]
[1672903123796,1.78967857,1250.0,1249.9,1.19680523]
[1672903124002,2.98289966,1250.0,1249.9,1.19680523]
[1672903124748,6.19069966,1250.0,1249.9,3.69680523]
[1672903124951,6.19069966,1250.0,1249.9,2.5]
[1672903125789,4.40102109,1250.0,1249.9,2.5]
[1672903126321,4.40102109,1250.0,1249.9,4.89348727]
[1672903126955,6.19069966,1250.0,1249.9,4.89348727]
[1672903127158,6.19069966,1250.0,1249.9,2.39348727]
[1672903127477,6.19069966,1250.0,1249.8,7.88683856]
[1672903127689,6.19069966,1250.0,1249.9,4.89348727]
[1672903127897,6.19069966,1250.0,1249.9,2.5]
[1672903128108,6.19069966,1250.0,1249.9,4.89348727]
[1672903129478,6.19069966,1250.0,1249.9,2.5]
[1672903129685,6.19069966,1250.0,1249.9,4.89348727]
[1672903129899,2.98289966,1250.0,1249.9,4.89348727]
[1672903130423,1.78967857,1250.0,1249.9,4.89348727]
[1672903131157,2.98392939,1250.0,1249.9,4.89348727]
[1672903131370,2.98392939,1250.0,1249.9,2.39348727]
[1672903131685,1.78967857,1250.0,1249.9,2.39348727]
[1672903133576,1.78967857,1250.0,1249.9,4.89348727]
[1672903133787,1.78967857,1250.0,1249.9,6.31121433]
[1672903135145,1.78967857,1250.0,1249.9,3.81121433]
[1672903135770,4.17847314,1250.0,1249.9,2.39348727]
[1672903136193,2.38879457,1250.0,1249.9,2.39348727]
[1672903138305,2.38879457,1250.0,1249.8,7.88683856]
[1672903138517,2.38879457,1250.0,1249.9,2.39348727]
[1672903138723,2.38879457,1250.0,1249.9,4.89348727]
[1672903140523,2.38879457,1250.0,1249.9,2.39348727]
[1672903140728,5.3764731,1250.0,1249.9,2.39348727]
[1672903141885,2.98767853,1250.0,1249.9,2.39348727]
[1672903142095,5.37879847,1250.0,1249.9,2.39348727]
[1672903142619,2.98767853,1250.0,1249.9,4.19206813]
[1672903143143,5.37903164,1250.0,1249.9,4.19206813]
[1672903145983,8.58683164,1250.0,1249.9,4.19206813]
[1672903146509,8.58657209,1250.0,1249.9,4.19206813]
[1672903146716,8.58649668,1250.0,1249.9,1.79858086]
[1672903146929,8.58649668,1250.0,1249.9,4.19206813]
[1672903147345,6.19547853,1250.0,1249.9,1.79858086]
[1672903148401,6.19547853,1250.0,1249.9,2.99747436]
[1672903148604,6.19547853,1250.0,1249.9,2.99747588]
[1672903148813,6.19547853,1250.0,1249.9,1.79858086]
[1672903150083,6.19547853,1250.0,1249.9,2.99733499]
[1672903150496,6.19547853,1250.0,1249.9,2.99529722]